bitfinex/quotes_SOLUSD_20250901
["timestamp","ask_amount","ask_price","bid_price","bid_amount"]
[1756706642021,2.87598486,198.27,198.21,147.92105688]
[1756706642218,2.87598486,198.26,198.21,142.87598486]
[1756706642453,26.0,198.28,198.22,2.87598486]
[1756706642762,2.87598486,198.27,198.22,2.87598486]
[1756706643443,2.87598486,198.26,198.21,147.92104203]
[1756706643947,31.04345476,198.28,198.21,147.92104203]
[1756706644152,26.0,198.28,198.23,2.87598486]
[1756706644347,26.0,198.28,198.22,2.87598486]
[1756706644544,2.87598486,198.27,198.22,2.87598486]
[1756706644929,28.87598486,198.28,198.23,2.87598486]
[1756706645136,2.93598486,198.29,198.24,2.87598486]
[1756706645534,0.06,198.29,198.23,2.87598486]
[1756706646026,2.93598486,198.29,198.25,2.87598486]
[1756706646229,0.06,198.29,198.24,5.04439063]
[1756706646437,0.06,198.29,198.25,2.87598486]
[1756706646834,0.06,198.29,198.24,7.92037549]
[1756706648444,0.06,198.29,198.25,2.87598486]
[1756706648848,0.06,198.29,198.27,13.59559401]
[1756706649155,0.06,198.29,198.27,16.47157887]
[1756706649347,0.06,198.29,198.28,16.47157887]
[1756706650356,0.06,198.29,198.28,21.51495187]
[1756706650867,0.06,198.29,198.28,21.65711344]
[1756706651940,0.06,198.29,198.28,200.83711344]
[1756706652148,0.06,198.29,198.28,158.78112858]
[1756706652454,0.06,198.29,198.28,156.47157887]
[1756706652848,0.06,198.29,198.28,153.59559401]
[1756706653051,0.06,198.29,198.28,156.47157887]
[1756706653254,0.06,198.29,198.28,161.51495187]
[1756706653963,0.06,198.29,198.28,16.47157887]
[1756706654156,0.06,198.29,198.25,39.18]
[1756706654356,0.06,198.29,198.26,13.59559401]
[1756706654862,2.93598486,198.29,198.26,13.59559401]
[1756706655038,2.93598486,198.29,198.23,0.14216157]
[1756706655039,2.87598486,198.28,198.24,52.79559401]
[1756706655356,2.87598486,198.28,198.23,2.87598486]
[1756706655357,2.87598486,198.28,198.21,13.59559401]
[1756706655547,2.87598486,198.28,198.24,13.59559401]
[1756706655931,7.9193966,198.28,198.24,13.59559401]
[1756706656539,7.9193966,198.28,198.23,13.59559401]
[1756706656840,7.9193966,198.28,198.23,195.81374044]
[1756706657243,7.9193966,198.28,198.23,55.81374044]
[1756706657465,7.9193966,198.28,198.23,13.59559401]
[1756706657644,2.87598486,198.27,198.23,13.59559401]
[1756706658954,7.9193966,198.28,198.23,13.59559401]
[1756706659562,2.87598486,198.27,198.21,0.03]
[1756706659750,2.87598486,198.27,198.21,42.08598486]
[1756706659946,5.10312236,198.29,198.23,13.59559401]
[1756706660147,0.06,198.29,198.25,2.87598486]
[1756706660354,0.06,198.29,198.26,13.73775558]
[1756706660559,0.06,198.29,198.27,2.87598486]
[1756706660972,0.06,198.29,198.28,2.87598486]
[1756706661471,0.06,198.29,198.25,182.07598486]
[1756706661654,0.06,198.29,198.25,42.07598486]
[1756706661852,2.87598486,198.28,198.21,0.03]
[1756706662057,2.87598486,198.27,198.22,42.13598486]
[1756706662259,2.87598486,198.27,198.22,39.26]
[1756706662461,2.87598486,198.27,198.22,42.13598486]
[1756706662664,0.06,198.29,198.23,13.59559401]
[1756706662847,0.06,198.29,198.25,2.87598486]
[1756706663445,0.06,198.29,198.28,13.59559401]
[1756706663645,0.06,198.29,198.28,21.51495187]
[1756706664269,0.06,198.29,198.28,21.65711344]
[1756706664675,0.06,198.29,198.28,161.65711344]
[1756706667557,0.06,198.29,198.28,24.5330983]
[1756706667956,0.06,198.29,198.28,21.65711344]
[1756706668472,0.06,198.29,198.28,24.5330983]
[1756706668974,0.06,198.29,198.28,26.5531473]
[1756706669764,0.06,198.29,198.28,23.67716244]
[1756706670597,0.06,198.29,198.28,160.80117758]
[1756706670900,0.06,198.29,198.28,52.95559401]
[1756706671061,0.06,198.29,198.28,55.97374044]
[1756706672090,0.06,198.29,198.28,55.83157887]
[1756706672294,0.06,198.29,198.28,55.85157887]
[1756706672466,0.06,198.29,198.28,13.59559401]
[1756706672667,0.06,198.29,198.28,55.85157887]
[1756706674074,0.06,198.29,198.28,60.89495187]
[1756706674291,0.06,198.29,198.28,61.03711344]
[1756706676495,0.06,198.29,198.28,87.03711344]
[1756706676897,0.06,198.29,198.28,89.05716244]
[1756706680193,0.06,198.29,198.28,229.05716244]
[1756706684488,0.06,198.29,198.28,227.03711344]
[1756706685604,0.06,198.29,198.28,229.05716244]
[1756706687008,0.06,198.29,198.28,226.18117758]
[1756706687304,0.06,198.29,198.28,227.03711344]
[1756706687604,0.06,198.29,198.28,229.05716244]
[1756706688286,0.06,198.31,198.3,39.59559401]
[1756706688607,0.06,198.31,198.3,79.01775558]
[1756706688788,0.06,198.31,198.3,81.89374044]
[1756706689391,0.06,198.31,198.3,86.93660478]
[1756706690291,0.06,198.31,198.3,60.93660478]
[1756706690475,0.06,198.31,198.3,13.73775558]
[1756706690682,0.06,198.31,198.3,13.59559401]
[1756706690883,0.06,198.31,198.3,52.85559401]
[1756706691509,0.06,198.31,198.3,57.89845835]
[1756706691711,0.06,198.31,198.3,60.91660478]
[1756706692693,0.06,198.31,198.3,58.04061992]
[1756706693988,0.06,198.31,198.3,52.99775558]
[1756706694189,0.06,198.31,198.3,52.85559401]
[1756706694404,2.93598486,198.31,198.3,39.26]
[1756706696115,7.97882194,198.31,198.29,39.26]
[1756706696297,2.87598486,198.3,198.29,39.26]
[1756706696689,2.87598486,198.3,198.26,0.03]
[1756706696890,2.87598486,198.28,198.26,39.29]
[1756706698736,7.91936408,198.28,198.26,39.29]
[1756706700141,2.87598486,198.27,198.26,39.29]
[1756706700523,7.91961223,198.27,198.26,39.29]
[1756706700711,2.87598486,198.27,198.26,39.29]
[1756706700910,31.04296405,198.3,198.26,39.29]
[1756706701141,2.87598486,198.27,198.26,39.29]
[1756706702415,2.87598486,198.28,198.26,39.29]
[1756706703724,2.87598486,198.27,198.26,39.29]
[1756706704441,0.06,198.31,198.26,39.29]
[1756706704758,2.87598486,198.3,198.26,39.29]
[1756706704924,2.87598486,198.29,198.26,39.29]
[1756706705334,2.87598486,198.27,198.26,52.88559401]
[1756706705539,2.87598486,198.27,198.26,39.29]
[1756706706458,2.87598486,198.28,198.26,39.29]
[1756706707038,2.87598486,198.29,198.26,39.29]
[1756706707529,5.10272017,198.31,198.26,0.03]
[1756706707733,2.87598486,198.27,198.26,0.03]
[1756706707928,5.10272017,198.31,198.26,0.03]
[1756706708238,2.87598486,198.29,198.26,0.03]
[1756706708547,5.10272017,198.31,198.26,0.03]
[1756706708548,5.04295156,198.3,198.26,0.03]
[1756706708754,2.87598486,198.28,198.26,0.03]
[1756706708924,2.87598486,198.27,198.26,0.03]
[1756706710145,26.0,198.29,198.26,0.03]
[1756706710453,7.91961223,198.27,198.26,0.03]
[1756706712837,5.04340041,198.28,198.26,0.03]
[1756706713063,2.87598486,198.27,198.26,0.03]
[1756706714074,0.06,198.31,198.26,0.03]
[1756706714250,2.87598486,198.28,198.26,0.03]
[1756706714652,2.87598486,198.27,198.26,0.03]
[1756706715656,2.87598486,198.29,198.26,0.03]
[1756706715860,0.06,198.31,198.26,0.17216157]
[1756706716070,0.06,198.31,198.28,0.14216157]
[1756706716280,2.93598486,198.31,198.27,52.91559401]
[1756706716963,2.93598486,198.31,198.27,57.95914392]
[1756706717157,2.93598486,198.31,198.27,52.91559401]
[1756706718385,2.93598486,198.31,198.27,13.59559401]
[1756706718577,2.87598486,198.3,198.26,0.03]
[1756706718776,2.87598486,198.28,198.26,0.03]
[1756706719082,0.06,198.31,198.26,0.03]
[1756706719287,2.87598486,198.29,198.26,0.03]
[1756706719983,2.87598486,198.3,198.26,0.03]
[1756706720368,2.87598486,198.3,198.26,13.62559401]
[1756706721577,2.87598486,198.3,198.26,18.66944453]
[1756706721981,0.06,198.31,198.26,0.03]
[1756706721982,2.87598486,198.27,198.26,0.03]
[1756706722485,0.06,198.31,198.26,0.03]
[1756706722870,2.87598486,198.3,198.26,0.03]
[1756706725280,0.06,198.31,198.27,13.59559401]
[1756706725281,5.10262054,198.31,198.27,13.59559401]
[1756706725483,2.87598486,198.29,198.26,13.76775558]
[1756706725692,2.87598486,198.27,198.26,0.03]
[1756706728992,2.87598486,198.29,198.26,0.03]
[1756706729184,2.87598486,198.3,198.26,13.62559401]
[1756706729684,2.87598486,198.3,198.26,18.66925593]
[1756706730687,0.06,198.31,198.26,18.66925593]
[1756706730893,2.87598486,198.3,198.26,18.66925593]
[1756706731907,0.06,198.31,198.26,18.66925593]
[1756706732094,2.87598486,198.3,198.26,18.66925593]
[1756706733605,2.87598486,198.29,198.26,39.35]
[1756706734889,5.1026543,198.31,198.26,39.35]
[1756706735298,2.87598486,198.29,198.26,44.39385415]
[1756706735795,2.87598486,198.29,198.26,5.07385415]
[1756706735994,5.1026543,198.31,198.26,5.07385415]
[1756706735995,5.1026543,198.31,198.26,44.39385415]
[1756706736187,2.87598486,198.29,198.26,5.07385415]
[1756706736392,5.042953,198.3,198.26,0.03]
[1756706736592,2.87598486,198.29,198.26,0.03]
[1756706736808,2.93598486,198.31,198.27,13.59559401]
[1756706737001,2.93598486,198.31,198.29,2.87598486]
[1756706737002,0.06,198.31,198.29,2.87598486]
[1756706737323,0.06,198.31,198.3,13.59559401]
[1756706737610,0.06,198.31,198.3,52.93559401]
[1756706738613,0.06,198.31,198.3,60.99660478]
[1756706739384,0.06,198.31,198.3,61.50089121]
[1756706739802,0.06,198.31,198.3,22.16089121]
[1756706740109,0.06,198.31,198.3,60.99660478]
[1756706740613,0.06,198.31,198.3,21.65660478]
[1756706740989,0.06,198.31,198.3,60.97660478]
[1756706741596,0.06,198.31,198.3,21.65660478]
[1756706741796,0.06,198.31,198.3,60.97660478]
[1756706742112,0.06,198.31,198.3,39.32]
[1756706742294,0.06,198.31,198.3,52.91559401]
[1756706742690,0.06,198.31,198.3,57.95845835]
[1756706743416,0.06,198.31,198.3,58.10061992]
[1756706743601,0.06,198.31,198.3,60.97660478]
[1756706744002,0.06,198.31,198.3,58.10061992]
[1756706744219,0.06,198.31,198.3,60.97660478]
[1756706744721,0.06,198.31,198.3,21.65660478]
[1756706744910,0.06,198.31,198.3,58.12061992]
[1756706745396,0.06,198.31,198.3,13.59559401]
[1756706745592,0.06,198.31,198.3,52.91559401]
[1756706746297,0.06,198.31,198.3,57.95845835]
[1756706747121,0.06,198.31,198.3,58.10061992]
[1756706747323,1e-08,198.31,198.3,60.97660478]
[1756706747525,1e-08,198.31,198.3,58.34061992]
[1756706747823,1e-08,198.31,198.3,63.23655178]
[1756706748021,1e-08,198.31,198.3,63.25655178]
[1756706748916,1e-08,198.31,198.3,23.67655178]
[1756706749228,1e-08,198.31,198.3,20.80056692]
[1756706749429,1e-08,198.31,198.3,60.38056692]
[1756706749632,1e-08,198.32,198.31,13.73775558]
[1756706749811,0.06,198.35,198.34,39.73775558]
[1756706750020,2.87598486,198.46,198.35,0.14216157]
[1756706750218,2.87598486,198.46,198.35,16.61374044]
[1756706750534,2.87598486,198.46,198.35,156.61374044]
[1756706750731,5.03863141,198.47,198.35,156.61374044]
[1756706751116,2.87598486,198.45,198.35,164.53131858]
[1756706751519,0.2,198.49,198.39,39.59559401]
[1756706751733,0.2,198.49,198.44,3.01814643]
[1756706751913,3.07598486,198.49,198.44,0.14216157]
[1756706752118,2.87598486,198.48,198.45,39.72]
[1756706752312,5.23805443,198.49,198.43,16.47157887]
[1756706752313,2.87598486,198.46,198.44,39.76]
[1756706752842,5.23805443,198.49,198.44,39.76]
[1756706753130,2.87598486,198.46,198.43,13.59559401]
[1756706753342,2.87598486,198.46,198.4,5.18244089]
[1756706753343,5.03855601,198.47,198.42,39.76]
[1756706753733,2.87598486,198.44,198.42,39.76]
[1756706754246,2.87598486,198.43,198.42,39.76]
[1756706755615,5.03956055,198.43,198.42,39.76]
[1756706755834,7.91554541,198.43,198.42,39.76]
[1756706756136,7.91554541,198.43,198.41,39.76]
[1756706756340,2.87598486,198.42,198.41,39.76]
[1756706757129,7.91579939,198.42,198.41,39.76]
[1756706757321,7.91579939,198.42,198.37,0.14216157]
[1756706757520,7.91579939,198.42,198.38,39.74]
[1756706757521,2.87598486,198.4,198.38,39.74]
[1756706758033,2.87598486,198.39,198.37,0.14216157]
[1756706758332,2.87598486,198.39,198.35,13.73775558]
[1756706758333,2.87598486,198.39,198.38,39.72]
[1756706758542,5.03981453,198.42,198.38,39.72]
[1756706758738,2.87598486,198.39,198.35,13.59559401]
[1756706759039,2.87598486,198.39,198.33,5.04204993]
[1756706759040,2.87598486,198.38,198.36,39.72]
[1756706759240,26.0,198.45,198.36,39.72]
[1756706759414,5.03930659,198.44,198.36,42.59598486]
[1756706759611,2.87598486,198.4,198.36,39.72]
[1756706759852,2.87598486,198.39,198.36,39.72]
[1756706760140,2.87598486,198.38,198.36,39.72]
[1756706760341,26.0,198.41,198.35,39.7]
[1756706760641,2.87598486,198.4,198.35,53.29559401]
[1756706760839,5.03930659,198.44,198.36,13.73775558]
[1756706761050,2.87598486,198.42,198.39,0.14216157]
[1756706761343,5.03865587,198.47,198.4,13.59559401]
[1756706761517,2.87598486,198.46,198.42,13.59559401]
[1756706761717,5.03833499,198.48,198.38,0.14216157]
[1756706761718,2.87598486,198.43,198.38,0.14216157]
[1756706761928,2.87598486,198.41,198.39,39.72]
[1756706762350,2.87598486,198.42,198.39,39.72]
[1756706762854,2.87598486,198.43,198.39,39.72]
[1756706763137,2.87598486,198.4,198.36,0.14216157]
[1756706763338,2.87598486,198.4,198.3,0.03]
[1756706763339,2.87598486,198.37,198.3,0.03]
[1756706763551,20.51004737,198.48,198.32,16.47157887]
[1756706763777,2.87598486,198.39,198.35,13.59559401]
[1756706763945,2.87598486,198.37,198.35,48.05559401]
[1756706764545,2.87598486,198.39,198.35,48.05559401]
[1756706764751,2.87598486,198.37,198.35,48.05559401]
[1756706765370,2.87598486,198.37,198.35,34.46]
[1756706765665,2.87598486,198.36,198.35,34.46]
[1756706767270,7.91739045,198.36,198.33,0.14216157]
[1756706767461,2.87598486,198.35,198.31,13.59559401]
[1756706767661,2.87598486,198.35,198.33,13.59559401]
[1756706768257,2.87598486,198.34,198.3,0.17216157]
[1756706768478,2.87598486,198.33,198.31,39.74]
[1756706771278,2.87598486,198.33,198.32,0.03]
[1756706772181,7.9180864,198.33,198.32,0.03]
[1756706774568,10.79407126,198.33,198.32,0.03]
[1756706778778,10.79407126,198.33,198.3,0.03]
[1756706778978,2.87598486,198.31,198.3,0.03]
[1756706780697,7.91859491,198.31,198.3,0.03]
[1756706782367,47.57859491,198.31,198.3,0.03]
[1756706783794,7.91859491,198.31,198.3,0.03]
[1756706783997,33.91859491,198.31,198.3,0.03]
[1756706785068,31.04261005,198.31,198.3,0.03]
[1756706785282,33.91859491,198.31,198.3,0.03]
[1756706788681,2.6360856,198.34,198.3,0.03]
[1756706788891,5.04133897,198.36,198.3,0.03]
[1756706789286,2.87598486,198.34,198.3,0.03]
[1756706789595,2.87598486,198.34,198.3,13.62559401]
[1756706789808,2.87598486,198.35,198.3,16.50157887]
[1756706790672,0.06,198.36,198.3,13.62559401]
[1756706790875,2.87598486,198.34,198.3,13.62559401]
[1756706791472,0.06,198.36,198.3,13.62559401]
[1756706791681,2.87598486,198.35,198.3,21.54438876]
[1756706792108,2.87598486,198.35,198.3,18.6684039]
[1756706792400,2.87598486,198.35,198.3,21.54438876]
[1756706795612,0.06,198.36,198.3,21.54438876]
[1756706795817,2.87598486,198.35,198.3,21.54438876]
[1756706796110,2.87598486,198.35,198.3,18.6684039]
[1756706796309,2.87598486,198.35,198.3,21.54438876]
[1756706796513,2.87598486,198.34,198.3,18.6684039]
[1756706796717,5.10140636,198.36,198.3,18.6684039]
[1756706796886,2.87598486,198.34,198.3,18.6684039]
[1756706797082,0.06,198.36,198.32,16.47157887]
[1756706797282,0.06,198.36,198.33,13.59559401]
[1756706797611,2.93598486,198.36,198.33,13.59559401]
[1756706797785,2.93598486,198.36,198.32,13.59559401]
[1756706797995,2.87598486,198.35,198.32,13.59559401]
[1756706798521,0.06,198.36,198.32,13.59559401]
[1756706798704,2.87598486,198.35,198.32,13.59559401]
[1756706798908,2.87598486,198.33,198.3,0.03]
[1756706799409,0.06,198.36,198.3,0.03]
[1756706799410,5.04165774,198.35,198.3,0.03]
[1756706799788,2.87598486,198.34,198.3,0.03]
[1756706800391,5.04165774,198.35,198.31,13.59559401]
[1756706800392,2.87598486,198.35,198.31,13.59559401]
[1756706800609,2.93598486,198.36,198.31,13.59559401]
[1756706800918,2.93598486,198.36,198.31,16.47157887]
[1756706801084,2.93598486,198.36,198.31,21.51413967]
[1756706801296,0.06,198.36,198.31,21.51413967]
[1756706801494,7.97734331,198.36,198.31,21.51413967]
[1756706801696,2.87598486,198.34,198.31,13.59559401]
[1756706804204,2.87598486,198.34,198.3,0.03]
[1756706804205,2.87598486,198.33,198.3,0.03]
[1756706804400,0.06,198.36,198.3,13.62559401]
[1756706804604,2.93598486,198.36,198.3,21.54442773]
[1756706805305,2.93598486,198.36,198.31,0.14216157]
[1756706805507,2.93598486,198.36,198.31,5.18457947]
[1756706805814,0.06,198.36,198.31,5.18457947]
[1756706806001,2.87598486,198.35,198.31,5.18457947]
[1756706808422,0.06,198.36,198.31,8.06056433]
[1756706808625,2.93598486,198.36,198.31,8.06056433]
[1756706809411,2.93598486,198.36,198.3,13.62559401]
[1756706809412,2.87598486,198.35,198.3,0.17216157]
[1756706809606,5.1015051,198.36,198.32,13.59559401]
[1756706809806,2.87598486,198.34,198.32,13.59559401]
[1756706810821,2.87598486,198.33,198.3,0.17216157]
[1756706811133,2.87598486,198.31,198.3,0.03]
[1756706814133,0.06,198.36,198.3,0.03]
[1756706814339,2.87598486,198.31,198.3,0.03]
[1756706814922,26.0,198.34,198.3,0.03]
[1756706815114,2.87598486,198.31,198.3,0.03]
[1756706815932,7.91859491,198.31,198.3,0.03]
[1756706821240,47.31859491,198.31,198.3,1e-08]
[1756706821741,181.84007291,198.31,198.3,1e-08]
[1756706822843,142.44007291,198.31,198.3,1e-08]
[1756706823321,181.82007291,198.31,198.3,1e-08]
[1756706824151,142.44007291,198.31,198.3,1e-08]
[1756706824337,181.82007291,198.31,198.3,1e-08]
[1756706825553,181.82007291,198.31,198.28,1e-08]
[1756706825861,28.87598486,198.29,198.28,1e-08]
[1756706826954,33.91910352,198.29,198.28,1e-08]
[1756706827243,75.30078652,198.29,198.28,1e-08]
[1756706827625,73.27910352,198.29,198.28,1e-08]
[1756706829931,76.15508838,198.29,198.26,0.03]
[1756706830139,5.75196972,198.27,198.26,0.03]
[1756706830334,2.87598486,198.27,198.26,0.03]
[1756706830655,42.23598486,198.27,198.26,0.03]
[1756706830854,2.87598486,198.27,198.26,0.03]
[1756706831050,42.23598486,198.27,198.26,0.03]
[1756706831343,44.40362737,198.27,198.26,0.03]
[1756706831545,44.40362737,198.27,198.26,1e-08]
[1756706831546,50.15559709,198.27,198.26,1e-08]
[1756706831853,182.65559709,198.27,198.22,0.03]
[1756706832067,5.75196972,198.25,198.24,1e-08]
[1756706832231,45.11196972,198.25,198.24,1e-08]
[1756706832629,45.11196972,198.25,198.22,1e-08]
[1756706832852,2.87598486,198.23,198.22,1e-08]
[1756706833047,13.59559401,198.21,198.1,92.85309992]
[1756706833265,17.66071248,198.18,198.1,92.85309992]
[1756706833443,2.87598486,198.11,198.1,92.85309992]
[1756706833756,26.0,198.1,198.03,2.87598486]
[1756706833952,2.87598486,198.1,198.05,16.61374044]
[1756706834132,2.87598486,198.11,198.07,13.59559401]
[1756706834331,2.87598486,198.11,198.02,20.22159594]
[1756706834544,2.87598486,198.09,198.05,13.59559401]
[1756706834751,2.87598486,198.1,198.05,153.59559401]
[1756706835133,2.87598486,198.1,198.05,158.64461409]
[1756706835362,5.04719123,198.13,198.05,18.64461409]
[1756706835860,2.87598486,198.1,198.05,18.64461409]
[1756706836237,2.87598486,198.09,198.05,13.73775558]
[1756706837350,5.04797361,198.1,198.05,13.73775558]
[1756706837653,2.87598486,198.09,198.05,13.73775558]
[1756706838057,5.04772292,198.11,198.05,13.73775558]
[1756706838245,2.87598486,198.09,198.05,13.73775558]
[1756706839337,5.04744599,198.12,198.04,140.0]
[1756706839649,2.87598486,198.08,198.03,13.59559401]
[1756706839850,2.87598486,198.08,198.03,16.47157887]
[1756706840441,15.173356,198.15,198.06,3.01814643]
[1756706840655,2.87598486,198.12,198.07,16.47157887]
[1756706840842,2.87598486,198.13,198.08,2.87598486]
[1756706841052,2.87598486,198.12,198.07,2.87598486]
[1756706841251,2.87598486,198.12,198.08,13.59559401]
[1756706841463,2.87598486,198.1,198.08,13.59559401]
[1756706841668,2.87598486,198.1,198.06,5.046746]
[1756706841852,2.87598486,198.1,198.06,13.59559401]
[1756706842177,5.0467462,198.15,198.06,13.59559401]
[1756706842342,2.87598486,198.1,198.06,153.59559401]
[1756706842541,2.87598486,198.11,198.07,5.04872014]
[1756706843040,2.87598486,198.11,198.06,161.52049632]
[1756706843244,2.87598486,198.11,198.06,21.52049632]
[1756706843742,5.04698852,198.14,198.07,0.14216157]
[1756706843945,5.0473923,198.13,198.07,0.14216157]
[1756706844172,2.87598486,198.11,198.07,0.14216157]
[1756706844380,2.87598486,198.1,198.07,0.14216157]
[1756706844590,2.87598486,198.09,198.06,13.59559401]
[1756706844743,2.87598486,198.09,198.06,18.64456739]
[1756706845066,2.87598486,198.09,198.06,13.59559401]
[1756706845447,5.0473923,198.13,198.06,13.59559401]
[1756706845776,2.87598486,198.09,198.06,13.59559401]
[1756706845950,5.0473923,198.13,198.06,13.59559401]
[1756706846155,2.87598486,198.1,198.06,13.59559401]
[1756706846676,5.0469365,198.14,198.06,18.64450173]
[1756706846852,2.87598486,198.1,198.06,18.64450173]
[1756706847181,2.87598486,198.07,198.05,13.62559401]
[1756706847553,2.87598486,198.07,198.05,0.03]
[1756706851289,7.92474051,198.07,198.05,0.03]
[1756706851466,2.87598486,198.06,198.05,0.03]
[1756706851850,5.04875565,198.07,198.05,0.03]
[1756706852062,2.87598486,198.06,198.05,0.03]
[1756706852582,7.92495991,198.06,198.05,0.03]
[1756706853070,2.87598486,198.06,198.05,0.03]
[1756706854486,7.92495991,198.06,198.05,0.03]
[1756706854654,5.04897505,198.06,198.05,0.03]
[1756706854979,7.92495991,198.06,198.05,0.03]
[1756706856761,5.04897505,198.06,198.05,0.03]
[1756706856971,7.92495991,198.06,198.05,0.03]
[1756706861489,9.94878991,198.06,198.03,0.03]
[1756706861680,2.87598486,198.04,198.03,0.03]
[1756706862582,7.92546981,198.04,198.03,0.03]
[1756706863575,47.24546981,198.04,198.03,0.03]
[1756706864067,73.24546981,198.04,198.03,0.03]
[1756706867283,47.24546981,198.04,198.03,0.03]
[1756706868970,47.22546981,198.04,198.03,0.03]
[1756706869688,62.40573581,198.04,198.03,0.03]
[1756706871293,62.38573581,198.04,198.03,0.03]
[1756706871491,47.20546981,198.04,198.03,0.03]
[1756706872469,47.22546981,198.04,198.03,0.03]
[1756706873595,44.34948495,198.04,198.03,0.03]
[1756706873895,47.22546981,198.04,198.03,0.03]
[1756706875299,33.92546981,198.04,198.03,0.03]
[1756706875794,73.22546981,198.04,198.03,0.03]
[1756706875996,33.92546981,198.04,198.03,0.03]
[1756706876198,73.20546981,198.04,198.03,0.03]
[1756706877206,31.04948495,198.04,198.03,0.03]
[1756706877407,73.20546981,198.04,198.03,0.03]
[1756706877781,2.87598486,198.04,198.03,0.03]
[1756706877983,26.0,198.05,198.03,0.03]
[1756706878183,2.87598486,198.04,198.03,0.03]
[1756706878985,5.0482104,198.09,198.03,0.03]
[1756706879215,2.87598486,198.04,198.03,0.03]
[1756706880202,135.13809121,198.1,198.03,0.03]
[1756706880380,5.0482104,198.09,198.03,0.03]
[1756706880585,137.54802868,198.1,198.03,0.03]
[1756706880786,39.28,198.09,198.03,0.03]
[1756706881082,132.5,198.1,198.03,13.62559401]
[1756706881303,2.87598486,198.08,198.03,2.90598486]
[1756706881609,2.87598486,198.07,198.03,13.62559401]
[1756706881910,2.87598486,198.06,198.03,13.62559401]
[1756706882133,2.87598486,198.07,198.03,13.62559401]
[1756706882423,2.87598486,198.07,198.03,18.67525499]
[1756706883107,2.87598486,198.07,198.03,13.62559401]
[1756706883791,0.06,198.05,198.03,13.62559401]
[1756706884322,0.06,198.05,198.03,18.6752912]
[1756706885313,0.06,198.05,198.03,13.62559401]
[1756706886013,0.06,198.05,198.03,18.67523763]
[1756706886217,0.06,198.05,198.04,13.59559401]
[1756706886514,0.06,198.05,198.04,16.47157887]
[1756706887802,0.06,198.05,198.03,7.95562848]
[1756706888018,0.06,198.05,198.03,5.07964362]
[1756706888317,0.06,198.05,198.04,13.59559401]
[1756706889824,2.93598486,198.05,198.03,0.03]
[1756706890002,28.87598486,198.04,198.03,0.03]
[1756706891418,33.92546981,198.04,198.03,0.03]
[1756706892895,5.10923665,198.05,198.03,0.03]
[1756706893214,2.87598486,198.04,198.03,0.03]
[1756706895119,0.06,198.05,198.03,0.03]
[1756706895321,2.87598486,198.04,198.03,0.03]
[1756706897129,7.92546981,198.04,198.03,0.03]
[1756706900810,10.80145467,198.04,198.03,0.03]
[1756706901021,10.80145467,198.04,198.01,0.03]
[1756706901210,10.80196467,198.02,198.01,0.03]
[1756706901412,50.08196467,198.02,198.01,0.03]
[1756706903013,26.0,197.99,197.93,82.21154335]
[1756706903209,7.92802083,197.94,197.93,82.21154335]
[1756706903448,7.92802083,197.94,197.89,13.59559401]
[1756706903639,2.87598486,197.93,197.89,13.59559401]
[1756706904435,2.87598486,197.92,197.88,13.73775558]
[1756706905009,28.87598486,197.91,197.87,140.0]
[1756706905216,2.87598486,197.88,197.83,18.65018512]
[1756706905633,2.87598486,197.89,197.83,18.65018512]
[1756706905936,2.87598486,197.89,197.83,21.52616998]
[1756706906136,2.87598486,197.89,197.84,0.14216157]
[1756706906818,2.87598486,197.89,197.85,13.59559401]
[1756706907027,2.87598486,197.87,197.85,13.59559401]
[1756706907235,2.87598486,197.88,197.85,13.59559401]
[1756706908007,2.87598486,197.89,197.85,13.59559401]
[1756706908231,2.87598486,197.89,197.85,153.59559401]
[1756706908937,2.87598486,197.88,197.85,153.59559401]
[1756706909527,2.87598486,197.89,197.85,153.59559401]
[1756706909720,2.87598486,197.89,197.85,158.6499137]
[1756706909929,2.87598486,197.88,197.85,153.59559401]
[1756706910140,2.87598486,197.87,197.85,153.59559401]
[1756706911141,2.87598486,197.87,197.85,13.59559401]
[1756706911341,2.87598486,197.87,197.81,13.73775558]